Cogmind - Beta 11 @@@ ROGUE MODE // 2022.04.14 @ 23:38:40 Player: Rainynight Result: Self-destructed Performance ------------- Evolutions (3) 1500 Regions Visited (8) 1600 Robots Destroyed (0) 0 Value Destroyed (0) 0 Prototype IDs (23) 460 Alien Tech Used (0) 0 Bonus (1416) 1416 TOTAL SCORE: 4976 Bonus ------- Pacifist 928 Follower Combat Kills 188 Aligned with FarCom 300 Cogmind --------- Core Integrity 700/700 Matter 300/300 Energy 100/100 System Corruption 0% Temperature Cool (0) Movement Treading (170) Location -7/Factory Parts ------- > --- POWER (1) -------- (None) > --- PROPULSION (5) --- Armored Treads > --- UTILITY (5) ------ Small Storage Unit Improved Terrain Scanner Modified TNC Hacking Suite > --- WEAPON (2) ------- Longsword +1 > --- INVENTORY (8) ---- Ion Engine Medium Storage Unit Medium Storage Unit High-capacity Matter Pod (200) High-capacity Matter Pod (200) High-capacity Matter Pod (200) High-capacity Matter Pod (200) Peak State ------------ > --- POWER ------------ Light Nuclear Core > --- PROPULSION ------- Light Treads Armored Treads Wheel > --- UTILITY ---------- Small Storage Unit Improved Terrain Scanner Modified TNC Hacking Suite > --- WEAPON ----------- Light Assault Rifle Longsword +1 > --- INVENTORY -------- Ion Engine Medium Storage Unit Medium Storage Unit High-capacity Matter Pod High-capacity Matter Pod High-capacity Matter Pod High-capacity Matter Pod [Rating: 30] Favorites ----------- Power Ion Engine Engine Ion Engine Power Core Light Nuclear Core Propulsion Wheel Treads Light Treads Leg Aluminum Leg Wheel Wheel Utility Small Storage Unit Device Improved Terrain Scanner Storage Small Storage Unit Processor Modified TNC Hackware Hacking Suite Protection Light Armor Plating Weapon Light Assault Rifle Ballistic Gun Light Assault Rifle Slashing Weapon Makeshift Sword Build | -11 -10 -10 -9 -9 -9 -8 -8 -7 ------- Run | Scr Mat Min Mat Min Exi Min Mat Fac Slots Evolved 6 | . . . 2 . . . 2 2 Power . | . . . . . . . . . Propulsion 3 | . . . 1 . . . 1 1 Utility 3 | . . . 1 . . . 1 1 Weapon . | . . . . . . . . . Parts Attached 12 | . 2 2 . 3 1 . 4 . Power 2 | . . . . 1 . . 1 . Engine . | . . . . . . . . . Core 2 | . . . . 1 . . 1 . Reactor . | . . . . . . . . . Propulsion 4 | . 2 . . 1 . . 1 . Treads 2 | . . . . 1 . . 1 . Leg . | . . . . . . . . . Wheel 2 | . 2 . . . . . . . Hover . | . . . . . . . . . Flight . | . . . . . . . . . Utility 4 | . . 1 . 1 1 . 1 . Device 1 | . . 1 . . . . . . Storage . | . . . . . . . . . Processor 1 | . . . . . 1 . . . Hackware 1 | . . . . . . . 1 . Protection 1 | . . . . 1 . . . . Artifact . | . . . . . . . . . Weapon 2 | . . 1 . . . . 1 . Energy Gun . | . . . . . . . . . Energy Cannon . | . . . . . . . . . Ballistic Gun . | . . . . . . . . . Ballistic Cannon . | . . . . . . . . . Launcher . | . . . . . . . . . Special Weapon . | . . . . . . . . . Impact Weapon . | . . . . . . . . . Slashing Weapon 2 | . . 1 . . . . 1 . Piercing Weapon . | . . . . . . . . . Special Melee Weapon . | . . . . . . . . . Unidentified Prototypes . | . . . . . . . . . Parts Lost 6 | . . . . . . . 6 . Power 1 | . . . . . . . 1 . Propulsion 3 | . . . . . . . 3 . Utility . | . . . . . . . . . Weapon 2 | . . . . . . . 2 . Highest Loss Streak 6 | . . . . . . . 6 . To Critical Strikes . | . . . . . . . . . Average Slot Usage (%) 91 | . 85 90 77 93 100 100 88 46 Engine 7 | . 14 14 11 5 . . . . Core 4 | . . . . 5 11 11 8 . Treads 5 | . . . . 7 11 11 14 7 Wheel 22 | . 23 28 22 22 22 22 14 . Device 8 | . . 5 11 11 11 11 9 7 Storage 11 | . 14 14 11 11 11 11 9 7 Processor 3 | . . . . . 6 11 9 7 Protection 2 | . . . . 7 4 . . . Ballistic Gun 16 | . 28 24 11 11 11 11 9 . Slashing Weapon 7 | . . 3 11 11 11 11 8 7 Naked Turns . | . . . . . . . . . Heaviest Build 17 | 12 12 14 14 17 17 14 15 9 Greatest Support 20 | 20 20 20 20 20 20 20 20 20 Greatest Overweight (x) 3 | . . . . . . . 3 . Average Overweight (x) . | . . . . . . . . . Largest Inventory Capacity 8 | . 8 8 8 8 8 8 8 8 Average Capacity 8 | . 8 8 8 8 8 8 8 8 Most Carried 8 | . 8 8 8 8 8 8 8 7 Average Carried 7 | . 7 7 8 8 8 8 7 7 Final Capacity 8 | 8 8 8 8 8 8 8 8 8 Final Carried 8 | 6 8 8 8 8 8 8 7 7 Class Distribution -------------------- 82% | Mutant 17% | Assassin Dominant Class ---------------- Mutant | -10/Materials Mutant | -10/Mines Mutant | -9/Materials Mutant | -9/Mines Mutant | -9/Exiles Assassin | -8/Mines Assassin | -8/Materials Mutant | -7/Factory Resources | -11 -10 -10 -9 -9 -9 -8 -8 -7 ----------- Run | Scr Mat Min Mat Min Exi Min Mat Fac Matter Collected 721 | 200 . 64 150 249 47 . 5 6 Remotely . | . . . . . . . . . Salvage Created . | . . . . . . . . . Parts . | . . . . . . . . . Haulers Intercepted . | . . . . . . . . . Recyclers Shooed . | . . . . . . . . . Parts Field Recycled . | . . . . . . . . . Retrieved Matter . | . . . . . . . . . Parts Self-Destructed . | . . . . . . . . . Prevented . | . . . . . . . . . Kills | -11 -10 -10 -9 -9 -9 -8 -8 -7 ------- Run | Scr Mat Min Mat Min Exi Min Mat Fac Combat Hostiles Destroyed . | . . . . . . . . . Classes Destroyed . | . . . . . . . . . Best Kill Streak . | . . . . . . . . . Combat Bots Only . | . . . . . . . . . Max Kills in Single Turn . | . . . . . . . . . Gunslinging . | . . . . . . . . . Exploded . | . . . . . . . . . Melee . | . . . . . . . . . Uniques/NPCs Destroyed . | . . . . . . . . . Combat | -11 -10 -10 -9 -9 -9 -8 -8 -7 -------- Run | Scr Mat Min Mat Min Exi Min Mat Fac Damage Taken 943 | . . 24 101 . . . 818 . Core 202 | . . . 28 . . . 174 . Absorbed by Shields . | . . . . . . . . . Core Remaining (%) 90 | 100 . 100 . . . 93 68 . Volleys Fired 1 | . . . . . . . 1 . Largest 1 | . . . . . . . 1 . Hottest 20 | . . . . . . . 20 . Shots Fired 1 | . . . . . . . 1 . Gun 1 | . . . . . . . 1 . Cannon . | . . . . . . . . . Launcher . | . . . . . . . . . Special . | . . . . . . . . . Kinetic 1 | . . . . . . . 1 . Thermal . | . . . . . . . . . Explosive . | . . . . . . . . . Electromagnetic . | . . . . . . . . . Robot Hit Streak . | . . . . . . . . . Robot Miss Streak . | . . . . . . . . . Penetration Max . | . . . . . . . . . Secondary Targets . | . . . . . . . . . Shots Hit Robots . | . . . . . . . . . Core Hits . | . . . . . . . . . Critical Kills . | . . . . . . . . . Critical Parts Destroyed . | . . . . . . . . . Critical Strikes . | . . . . . . . . . Melee Attacks 9 | . . . . . . . 9 . Impact . | . . . . . . . . . Slashing 9 | . . . . . . . 9 . Piercing . | . . . . . . . . . Sneak Attacks . | . . . . . . . . . Combat Hostiles . | . . . . . . . . . Follow-up Attacks . | . . . . . . . . . Damage Inflicted . | . . . . . . . . . Guns . | . . . . . . . . . Cannons . | . . . . . . . . . Explosions . | . . . . . . . . . Melee . | . . . . . . . . . Ramming . | . . . . . . . . . Kinetic . | . . . . . . . . . Thermal . | . . . . . . . . . Explosive . | . . . . . . . . . Electromagnetic . | . . . . . . . . . Impact . | . . . . . . . . . Slashing . | . . . . . . . . . Piercing . | . . . . . . . . . Highest Corruption 1 | . . 1 . . . . . . Average Corruption 1 | . . 1 . . . . . . Corruption Purged . | . . . . . . . . . Corruption Blocked . | . . . . . . . . . Effects 1 | . . 1 . . . . . . Matter Fused 1 | . . 1 . . . . . . Overload Shots . | . . . . . . . . . Overflow Damage . | . . . . . . . . . Projectiles . | . . . . . . . . . Explosions . | . . . . . . . . . Melee . | . . . . . . . . . Knockbacks . | . . . . . . . . . Impact . | . . . . . . . . . Kinetic . | . . . . . . . . . Secondary . | . . . . . . . . . Self-Inflicted Damage . | . . . . . . . . . Shots . | . . . . . . . . . Rammed . | . . . . . . . . . Targets Rammed . | . . . . . . . . . Kicked . | . . . . . . . . . Crushed . | . . . . . . . . . Highest Temperature 4 | . . . 4 . . . . . Average Temperature 4 | . . . 4 . . . . . Received Heat Transfer 180 | . . . 54 . . . 126 . Siege Activations . | . . . . . . . . . Robots Corrupted . | . . . . . . . . . Combat Hostiles . | . . . . . . . . . Parts Fried . | . . . . . . . . . Impact Corruptions . | . . . . . . . . . Robots Melted . | . . . . . . . . . Combat Hostiles . | . . . . . . . . . Parts Melted . | . . . . . . . . . Heat Transferred . | . . . . . . . . . Parts Sabotaged . | . . . . . . . . . Parts Stolen . | . . . . . . . . . Parts Stripped . | . . . . . . . . . Power Chain Reactions . | . . . . . . . . . Missiles Intercepted . | . . . . . . . . . Alert | -11 -10 -10 -9 -9 -9 -8 -8 -7 ------- Run | Scr Mat Min Mat Min Exi Min Mat Fac Peak Influence 144 | . 15 5 23 144 . 58 58 21 Initial 21 | . . 5 . 8 . . . 21 Average 25 | . 5 4 8 88 . 9 8 21 Maximum Alert Level . | . . . . . . . . . Low Security (%) 100 | . 100 100 100 100 . 100 100 100 Level 1 . | . . . . . . . . . Level 2 . | . . . . . . . . . Level 3 . | . . . . . . . . . Level 4 . | . . . . . . . . . Level 5 . | . . . . . . . . . High Security . | . . . . . . . . . Max Security . | . . . . . . . . . Squads Dispatched 4 | . 1 . 1 . . . 2 . Investigation 2 | . . . 1 . . . 1 . Extermination . | . . . . . . . . . Reinforcement 2 | . 1 . . . . . 1 . Assault . | . . . . . . . . . Garrison . | . . . . . . . . . Intercept . | . . . . . . . . . Searches Triggered . | . . . . . . . . . Construction Impeded . | . . . . . . . . . Haulers Reinforced . | . . . . . . . . . Active Scanning Responses . | . . . . . . . . . Cargo Convoy Interrupts . | . . . . . . . . . Stealth | -11 -10 -10 -9 -9 -9 -8 -8 -7 --------- Run | Scr Mat Min Mat Min Exi Min Mat Fac Distress Signals 1 | . . . . . . . 1 . Communications Jammed . | . . . . . . . . . Distress Signals . | . . . . . . . . . Times Spotted 21 | . 2 . 1 2 . . 16 . Peak Tracking Total 14 | . 1 . 1 2 . . 14 . Tactical Retreats 2 | . . . . . . . 2 . Traps | -11 -10 -10 -9 -9 -9 -8 -8 -7 ------- Run | Scr Mat Min Mat Min Exi Min Mat Fac Traps Triggered 2 | . . 1 . . . . 1 . Indirectly . | . . . . . . . . . Trap Hack Attempts . | . . . . . . . . . Triggered . | . . . . . . . . . Disarmed . | . . . . . . . . . Reprogrammed . | . . . . . . . . . Reused . | . . . . . . . . . Traps Extracted . | . . . . . . . . . Installed . | . . . . . . . . . Triggered . | . . . . . . . . . Machines | -11 -10 -10 -9 -9 -9 -8 -8 -7 ---------- Run | Scr Mat Min Mat Min Exi Min Mat Fac Machines Disabled . | . . . . . . . . . Max in Single Turn . | . . . . . . . . . Garrison Access 1 | . . . . . . . 1 . Machines Sabotaged . | . . . . . . . . . Garrisons Compromised . | . . . . . . . . . Overloaded Fab Kills . | . . . . . . . . . Hacking | -11 -10 -10 -9 -9 -9 -8 -8 -7 --------- Run | Scr Mat Min Mat Min Exi Min Mat Fac Machines Accessed 8 | . . 1 2 . 4 . 1 . Terminals 2 | . . . 2 . . . . . Fabricators . | . . . . . . . . . Repair Stations . | . . . . . . . . . Recycling Units . | . . . . . . . . . Scanalyzers . | . . . . . . . . . Garrison Access 1 | . . . . . . . 1 . Total Hacks 48 | . . 1 5 . 41 . 1 . Successful 44 | . . 1 1 . 41 . 1 . Failed 4 | . . . 4 . . . . . Catastrophic . | . . . . . . . . . Database Lockouts . | . . . . . . . . . Manual 6 | . . . 5 . 1 . . . Terminals 5 | . . . 5 . . . . . Fabricators . | . . . . . . . . . Repair Stations . | . . . . . . . . . Recycling Units . | . . . . . . . . . Scanalyzers . | . . . . . . . . . Garrison Access 1 | . . . . . . . 1 . Terminal Hacks 43 | . . 1 1 . 41 . . . Record 40 | . . . . . 40 . . . Open Door 1 | . . 1 . . . . . . Branch Access Points 1 | . . . 1 . . . . . EX-Prototype ID Bank 1 | . . . . . 1 . . . Fabricator Hacks . | . . . . . . . . . Repair Station Hacks . | . . . . . . . . . Recycling Unit Hacks . | . . . . . . . . . Scanalyzer . | . . . . . . . . . Garrison Access Hacks 1 | . . . . . . . 1 . Seal Access 1 | . . . . . . . 1 . Unauthorized Hacks . | . . . . . . . . . Terminals . | . . . . . . . . . Fabricators . | . . . . . . . . . Repair Stations . | . . . . . . . . . Recycling Units . | . . . . . . . . . Scanalyzers . | . . . . . . . . . Garrison Access . | . . . . . . . . . Data Cores Recovered . | . . . . . . . . . Used . | . . . . . . . . . Hacking Detections 1 | . . . 1 . . . . . Full Trace Events 1 | . . . 1 . . . . . Feedback Events . | . . . . . . . . . Feedback Blocked . | . . . . . . . . . Robot Schematics Acquired . | . . . . . . . . . Robots Built . | . . . . . . . . . Authchips . | . . . . . . . . . Time . | . . . . . . . . . Total Robot Build Rating . | . . . . . . . . . Part Schematics Acquired . | . . . . . . . . . Parts Built . | . . . . . . . . . Authchips . | . . . . . . . . . Time . | . . . . . . . . . Total Part Build Rating . | . . . . . . . . . Parts Repaired . | . . . . . . . . . Time . | . . . . . . . . . Parts Recycled . | . . . . . . . . . Recycled Matter . | . . . . . . . . . Retrieved Matter . | . . . . . . . . . Retrieved Components . | . . . . . . . . . Parts Scanalyzed . | . . . . . . . . . Part Schematics Acquired . | . . . . . . . . . Parts Damaged . | . . . . . . . . . Bothacking | -11 -10 -10 -9 -9 -9 -8 -8 -7 ------------ Run | Scr Mat Min Mat Min Exi Min Mat Fac Used RIF Installer . | . . . . . . . . . Robots Hacked . | . . . . . . . . . Non-combat . | . . . . . . . . . Combat . | . . . . . . . . . Robot Hacks Applied . | . . . . . . . . . Relay Couplers Released . | . . . . . . . . . Fabnet Peak Effective % . | . . . . . . . . . Robots Rewired . | . . . . . . . . . Allies Hacked . | . . . . . . . . . Hacks Repelled . | . . . . . . . . . Allies | -11 -10 -10 -9 -9 -9 -8 -8 -7 -------- Run | Scr Mat Min Mat Min Exi Min Mat Fac Total Allies 5 | . . . . 5 . . . . Largest Group 5 | . . . . 5 4 3 . . Highest-Rated Group 89 | . . . . 89 71 40 . . Highest-Rated Ally 31 | . . . . 31 31 16 . . Total Orders . | . . . . . . . . . Ally Attacks 48 | . . . . 22 . 26 . . Total Damage 614 | . . . . 284 . 330 . . Kills 7 | . . . . 5 . 2 . . Allies Corrupted . | . . . . . . . . . Allies Melted . | . . . . . . . . . Intel | -11 -10 -10 -9 -9 -9 -8 -8 -7 ------- Run | Scr Mat Min Mat Min Exi Min Mat Fac Robot Analysis Total . | . . . . . . . . . Derelict Logs Recovered 2 | . . 1 . 1 . . . . Drone Launches . | . . . . . . . . . Drone Recoveries . | . . . . . . . . . Exploration | -11 -10 -10 -9 -9 -9 -8 -8 -7 ------------- Run | Scr Mat Min Mat Min Exi Min Mat Fac Turns Passed 1592 | . 136 495 71 306 266 122 172 24 Spaces Moved 1822 | 1 148 603 86 355 317 129 169 14 Core 2 | . . . . . . . 2 . Treads 20 | . . . . . . . 6 14 Legs 19 | 1 18 . . . . . . . Wheels 1781 | . 130 603 86 355 317 129 161 . Hover . | . . . . . . . . . Flight . | . . . . . . . . . Fastest Speed 80 | 120 80 80 80 80 80 80 80 170 Average Speed 81 | 120 84 80 80 80 80 80 87 170 Slowest Speed 200 | 120 120 80 80 80 80 80 200 170 Overloaded Moves . | . . . . . . . . . Propulsion Burnouts . | . . . . . . . . . Robots Hopped . | . . . . . . . . . Cave-ins Triggered . | . . . . . . . . . Exploration Rate (%) 39 | 2 34 95 13 76 69 44 25 1 Regions Visited 8 Branch Regions 4 Pre-discovered Areas 1 | . . . . . 1 . . . Known Exits Taken 1 | . . . 1 . . . . . Unknown Exits Taken 7 | 1 1 1 . 1 1 1 1 . Scrap Searched 1 | . . 1 . . . . . . Spaces Dug 9 | . . . . . . . 9 . Terrain Destroyed 9 | . . . . . . . 9 . Melee 9 | . . . . . . . 9 . Projectile . | . . . . . . . . . AOE . | . . . . . . . . . Terrain Rammed . | . . . . . . . . . Walls Destroyed . | . . . . . . . . . Machines Disabled . | . . . . . . . . . Actions | -11 -10 -10 -9 -9 -9 -8 -8 -7 --------- Run | Scr Mat Min Mat Min Exi Min Mat Fac Total 1913 | . 157 617 91 375 329 147 183 14 Wait 53 | . 6 2 . 17 9 19 . . Move 1814 | . 147 602 85 354 316 128 168 14 Hop . | . . . . . . . . . Pick Up 11 | . 2 5 3 . 1 . . . Fast Attach 8 | . . 2 . 3 1 . 2 . Attach 1 | . . . . . . . 1 . Detach . | . . . . . . . . . Swap 3 | . 2 . . . . . 1 . Drop 13 | . . 6 3 1 2 . 1 . Fire 1 | . . . . . . . 1 . Melee 9 | . . . . . . . 9 . Ram . | . . . . . . . . . Kick . | . . . . . . . . . Crush . | . . . . . . . . . Escape Stasis . | . . . . . . . . . Rewire . | . . . . . . . . . Trap . | . . . . . . . . . Miscellaneous . | . . . . . . . . . Route ------- -11/Scrapyard -10/Materials -10/Mines (discovered 2 exits: *Mat x2) -9/Materials -9/Mines (discovered 4 exits: *Mat x2 / *Exi / [*Zio]) -9/Exiles (discovered 2 exits: [*Min x2]) -8/Mines -8/Materials -7/Factory (discovered 1 exit: Sto) History --------- Turn | Location | Event 1 | -11/Scrapyard | Discovered new exit (range 0) 1 | -11/Scrapyard | Entered Materials 133 | -10/Materials | Discovered new exit (range 6) 137 | -10/Materials | Entered Mines 172 | -10/Mines | Discovered new exit (range 11) 314 | -10/Mines | Build established: Mutant 339 | -10/Mines | Received a Rocket Launcher from a helpful Derelict 441 | -10/Mines | Met a Derelict who couldn't figure out how to use a Trap Extractor 507 | -10/Mines | A weapon hastily lodged in a ceiling crevice suddenly fell to the ground 556 | -10/Mines | Discovered new exit (range 9) 632 | -10/Mines | Entered Materials 632 | -9/Materials | Evolved 2 slots: Propulsion x1, Utility x1 672 | -9/Materials | Identified exit to Mines 703 | -9/Materials | Entered Mines 709 | -9/Mines | Learned Materials security intel 758 | -9/Mines | Assisted by bots powering up and referring to "LRC-V3" 803 | -9/Mines | Discovered new exit (range 13) 961 | -9/Mines | Discovered new exit (range 5) 962 | -9/Mines | A Derelict revealed a hidden shortcut to a safe place 989 | -9/Mines | Deemed a non-threat by the Exiles lab entrance 990 | -9/Mines | Discovered new exit (range 5) 1009 | -9/Mines | Entered Exiles 1009 | -9/Exiles | Accompanied by 4 allies 1020 | -9/Exiles | Discovered new exit (range 15) 1030 | -9/Exiles | Met 8R-AWN 1039 | -9/Exiles | Led the pair of lost Derelicts to a safe place 1042 | -9/Exiles | Met EX-HEX 1066 | -9/Exiles | Met EX-BIN 1077 | -9/Exiles | Aligned with FarCom system 1078 | -9/Exiles | Given EX-Vault access code 1097 | -9/Exiles | Opened EX-Vault 1103 | -9/Exiles | Found Modified TNC 1107 | -9/Exiles | Found Longsword +1 1139 | -9/Exiles | Warned to stay clear of 0b10 Research branches 1162 | -9/Exiles | Met EX-DEC 1167 | -9/Exiles | Learned location of Zion (-7) 1256 | -9/Exiles | Discovered new exit (range 14) 1275 | -9/Exiles | Stole two prototypes: Modified TNC, Longsword +1 1275 | -9/Exiles | Entered Mines 1275 | -8/Mines | Accompanied by 3 allies 1387 | -8/Mines | Discovered new exit (range 9) 1397 | -8/Mines | Entered Materials 1397 | -8/Materials | Evolved 2 slots: Propulsion x1, Utility x1 1551 | -8/Materials | Discovered new exit (range 14) 1569 | -8/Materials | Entered Factory 1569 | -7/Factory | Evolved 2 slots: Propulsion x1, Utility x1 1570 | -7/Factory | Identified exit to Storage 1571 | -7/Factory | FarCom data flow suspended 1593 | -7/Factory | Self-destructed Last Messages --------------- 01510_ R-06 Scavenger collects Structural Scanner. 01511_ Knocked back. 01513_ Slug penetrates Door. 01513_ Knocked back. 01526_ Lgt. Treads destroyed. 01537_ T-07 Excavator destroyed. 01551_ EXIT=FOUND 01554_ Lgt. Nuclear Core destroyed. 01556_ Wheel destroyed. 01565_ Lgt. Assault Rifle destroyed. PARAMETERS=PROPULSION+1,UTILITY+1 LOCATION=UNKNOWN GOAL=ESCAPE 01569_ Receiving FarCom transmissions... Loading 1 Storage entrance... 01571_ FARCOM_MSG: Not cool, anonymous tester bot. We've taken inventory and discovered your thievery. Let's see how you like having parts stolen! 01571_ FarCom data flow suspended. 01586_ Acquired 6 matter. Map ----- +----------------------------------------------------+ | ????????????????????????????????????????? | | ????????????????????????????????????????? | | ????????????????????????????????????????? | | ????????????????????????????????????????? | | ????????????????????????????????????????? | | ????????????????????????????????????????? | | ????????????????????????????????????????? | | ????????????????????????????????????????? | | ????????????????????????????????????????? | | ????????????????????????????????????????? | | ????????????????????????????????????????? | | ????????????????????????????????????????? | | ????????????????????????????????????????? | | ????????????????????????????????????????? | | ????????????????????????????????????????? | | ????????????????????????????????????????? | | ????????????????????????????????????????? | | ??????????????#??##############?????????? | | ?????????????????# ! #?????????? | | ?????????????????# #?????????? | | ?????????????????# [ #?????????? | | ??????????#??????# #?????????? | | ?????????????????# % #????????#? | | ?????????????????# #?????????? | | ?????????????????# ! #?????????? | | ?????????????????# @ #?????????? | | ?????????????????# #?????????# | | ?????????????????# #?????????? | | ?????????????????# #?????????? | | ?????????????????# #?????????? | | ?????????????###########+######?????????# | | ?????????????# #???????????? | | ?????????????# #???????????? | | ?????????????# #??????????#? | | ?????????????# #???????????? | | ?????????????# #???????????? | | ?????????????# ####+#####????????#??? | | ?????????????# ????????????#????????? | | ?????????????# ??????????#???????????? | | ?????????????+ ??+??????? ????????????? | | ?????????????# ?????????????????????#??? | | ?????????????# ?????????????????????????? | | ????????????????????????????????????????? | | ????????????????????????????????????????? | | ????????????????????????????????????????? | | ????????????????????????????#???????????? | | ????????????????????????????????????????? | | ????????????????????????????????????????? | | ????????????????????????????????????????? | | ????????????????????????????????????????? | +----------------------------------------------------+ Best States ------------- Heat Dissipation 34 Energy Generation 14 Energy Capacity 250 Matter Stores 300 Matter Capacity 300 Sight Range 16 Terrain Scan Range 16 Terrain Scan Density 10 Armor Coverage 150 Evasion (%) 50 Recoil Reduction 1 Offensive Hacking 10 Item Schematics ----------------- None Robot Schematics ------------------ None Fabricated ------------ Nothing Alien Tech Used ----------------- None Achievements -------------- None Challenges ------------ None Game ------ Seed AntigravMappingSteel Manual? 0 Play Time 00:15:16 Cumulative 79.2 hours Start 2022.04.14 @ 23:23:43 End 2022.04.14 @ 23:38:40 Sessions 1 Manual Loads 0 Difficulty Rogue Special Mode None Game No. 93 Rogue 93 Adventurer 0 Explorer 0 Win Type - Total 1 Types 1/0/0/0/0/0/0/0/0 Lore% 48 Gallery% 53 Achievement% 39 Wizard Run 0 Options --------- ASCII 1 Keyboard 1 Movement Numpad Keybinds 0 Fullscreen 1 Font 18/X11 Map View 76x50 Tactical HUD 1 Map Filters NONE Filters NONE Steam 1 RUN: 51237e84-dd8a-4490-aaf4-34073a4e1079